lending/lending_fUSD_20240703
["ID","MTS","AMOUNT","RATE_DAILY","PERIOD"]
[330976321,1719982264811,-150.0,0.00019386,4]
[330976322,1719982264820,-155.8604434,0.00019393,2]
[330976323,1719982264829,-151.36240956,0.00019398,2]
[330976324,1719982264838,-4283.0,0.000194,3]
[330976325,1719982264848,-632.14232024,0.00019424,2]
[330976326,1719982264857,-159.58343705,0.00019441,2]
[330976327,1719982264867,-632.14232024,0.00019462,2]
[330976328,1719982264876,-150.0,0.00019466,4]
[330976329,1719982264884,-152.83410141,0.00019483,2]
[330976330,1719982264893,-824.0,0.000195,3]
[330976331,1719982264902,-2500.0,0.000195,2]
[330976332,1719982264911,-151.0,0.000195,2]
[330976333,1719982264920,-153.3152539,0.00019529,2]
[330976334,1719982264929,-150.0,0.00019545,4]
[330976335,1719982264940,-151.04690993,0.0001956,2]
[330976336,1719982264949,-166.66666668,0.0001957,2]
[330976337,1719982264958,-315.93186495,0.0001958,2]
[330976338,1719982264967,-646.38295816,0.00019599,2]
[330976339,1719982264976,-646.38295816,0.00019602,2]
[330976340,1719982264986,-150.0,0.00019625,4]
[330976341,1719982264996,-6504.07410586,0.00019627,2]
[330976342,1719982265007,-166.66666666,0.00019636,2]
[330976343,1719982265016,-204.0,0.0001964,2]
[330976344,1719982265025,-315.93186495,0.0001964,2]
[330976345,1719982265034,-1546.126,0.0001966,2]
[330976346,1719982265049,-166.0,0.0001966,2]
[330976347,1719982265058,-1150.372,0.0001966,2]
[330976348,1719982265067,-283.0,0.0001966,2]
[330976349,1719982265076,-175.43885404,0.00019661,2]
[330976350,1719982265086,-632.14232024,0.00019691,2]
[330976351,1719982265097,-765.0,0.00019691,2]
[330976352,1719982265106,-150.0,0.00019704,4]
[330976353,1719982265115,-153.90874848,0.00019716,2]
[330976354,1719982265125,-152.83410141,0.00019757,2]
[330976355,1719982265135,-175.43885404,0.00019766,2]
[330976356,1719982265144,-384.98145214,0.00019775,2]
[330976357,1719982265153,-150.0,0.00019784,4]
[330976358,1719982265162,-155.17151179,0.00019786,2]
[330976359,1719982265171,-384.98145214,0.00019787,2]
[330976360,1719982265180,-646.38295816,0.00019794,2]
[330976361,1719982265189,-231.28867886,0.00019799,2]
[330976362,1719982265198,-384.98145214,0.0001981,2]
[330976363,1719982265207,-384.98145214,0.00019811,2]
[330976364,1719982265217,-231.28867886,0.00019826,2]
[330976365,1719982265226,-384.98145214,0.00019839,2]
[330976366,1719982265235,-150.0,0.00019863,4]
[330976367,1719982265244,-153.90874848,0.00019864,2]
[330976368,1719982265253,-154.27660404,0.00019878,2]
[330976369,1719982265263,-173.5023542,0.00019899,2]
[330976370,1719982265272,-151.04690993,0.00019924,2]
[330976371,1719982265280,-384.98145214,0.00019939,2]
[330976372,1719982265289,-150.0,0.00019942,4]
[330976373,1719982265299,-175.43885404,0.00019958,2]
[330976374,1719982265311,-154.27660404,0.00019967,2]
[330976375,1719982265321,-151.69453534,0.0001997,2]
[330976376,1719982265330,-166.66666666,0.00019973,2]
[330976377,1719982265342,-204.0,0.0001998,2]
[330976378,1719982265352,-153.3152539,0.00019981,2]
[330976379,1719982265361,-175.43885404,0.00019984,2]
[330976380,1719982265370,-175.43885404,0.00019986,2]
[330976381,1719982265379,-289.57,0.0001999,2]
[330976382,1719982265390,-307.14555263,0.0002,2]
[330976383,1719982265400,-319.03275939,0.0002,2]
[330976384,1719982265410,-400.0,0.0002,2]
[330976385,1719982265420,-502.0,0.0002,2]
[330976386,1719982265429,-581.33393112,0.0002,2]
[330976387,1719982265439,-1278.49556294,0.0002,2]
[330976388,1719982265448,-12802.4140986,0.0002,3]
[330976389,1719982265458,-155.0,0.0002,2]
[330976390,1719982265466,-666.92856,0.0002,2]
[330976391,1719982265476,-171.805303,0.0002,2]
[330976392,1719982265486,-171.805303,0.0002,2]
[330976393,1719982265496,-226.4432324,0.0002,2]
[330976394,1719982265506,-151.0,0.0002,2]
[330976395,1719982265515,-306.55862,0.0002,2]
[330976396,1719982265524,-306.55862,0.0002,2]
[330976397,1719982265534,-306.55862,0.0002,2]
[330976398,1719982265543,-306.55862,0.0002,2]
[330976399,1719982265552,-306.55862,0.0002,2]
[330976400,1719982265561,-306.55862,0.0002,2]
[330976401,1719982265569,-306.55862,0.0002,2]
[330976402,1719982265578,-306.55862,0.0002,2]
[330976403,1719982265587,-306.55862,0.0002,2]
[330976404,1719982265596,-306.55862,0.0002,2]
[330976405,1719982265605,-306.55862,0.0002,2]
[330976406,1719982265614,-306.55862,0.0002,2]
[330976407,1719982265622,-306.55862,0.0002,2]
[330976408,1719982265632,-306.55862,0.0002,2]
[330976409,1719982265640,-306.55862,0.0002,2]
[330976410,1719982265649,-306.55862,0.0002,2]
[330976411,1719982265660,-306.55862,0.0002,2]
[330976412,1719982265670,-306.55862,0.0002,2]
[330976413,1719982265681,-306.55862,0.0002,2]
[330976414,1719982265692,-306.55862,0.0002,2]
[330976415,1719982265703,-306.55862,0.0002,2]
[330976416,1719982265714,-306.55862,0.0002,2]
[330976417,1719982265723,-306.55862,0.0002,2]
[330976418,1719982265734,-306.55862,0.0002,2]
[330976419,1719982265745,-306.55862,0.0002,2]
[330976420,1719982265756,-306.55862,0.0002,2]
[330976421,1719982265766,-306.55862,0.0002,2]
[330976422,1719982265775,-306.55862,0.0002,2]
[330976423,1719982265784,-306.55862,0.0002,2]
[330976424,1719982265794,-306.55862,0.0002,2]
[330976425,1719982265804,-306.55862,0.0002,2]
[330976426,1719982265813,-306.55862,0.0002,2]
[330976427,1719982265823,-306.55862,0.0002,2]
[330976428,1719982265832,-306.55862,0.0002,2]
[330976429,1719982265841,-306.55862,0.0002,2]
[330976430,1719982265851,-306.55862,0.0002,2]
[330976431,1719982265861,-306.55862,0.0002,2]
[330976432,1719982265870,-306.55862,0.0002,2]
[330976433,1719982265880,-306.55862,0.0002,2]
[330976434,1719982265889,-306.55862,0.0002,2]
[330976435,1719982265898,-306.55862,0.0002,2]
[330976436,1719982265907,-306.55862,0.0002,2]
[330976437,1719982265916,-306.55862,0.0002,2]
[330976438,1719982265925,-306.55862,0.0002,2]
[330976439,1719982265934,-306.55862,0.0002,2]
[330976440,1719982265943,-306.55862,0.0002,2]
[330976441,1719982265952,-306.55862,0.0002,2]
[330976442,1719982265961,-306.55862,0.0002,2]
[330976443,1719982265971,-306.55862,0.0002,2]
[330976444,1719982265979,-306.55862,0.0002,2]
[330976445,1719982265988,-306.55862,0.0002,2]
[330976446,1719982265998,-867.54923149,0.0002,2]
[330976447,1719982266007,-306.55862,0.0002,2]
[330976448,1719982266017,-306.55862,0.0002,2]
[330976449,1719982266026,-306.55862,0.0002,2]
[330976450,1719982266035,-306.55862,0.0002,2]
[330976451,1719982266044,-306.55862,0.0002,2]
[330976452,1719982266055,-306.55862,0.0002,2]
[330976453,1719982266065,-306.55862,0.0002,2]
[330976454,1719982266074,-306.55862,0.0002,2]
[330976455,1719982266083,-306.55862,0.0002,2]
[330976456,1719982266093,-306.55862,0.0002,2]
[330976457,1719982266105,-306.55862,0.0002,2]
[330976458,1719982266116,-306.55862,0.0002,2]
[330976459,1719982266126,-306.55862,0.0002,2]
[330976460,1719982266137,-150.0,0.00020022,4]
[330976461,1719982266146,-153.3152539,0.00020027,2]
[330976462,1719982266155,-166.66666668,0.00020034,2]
[330976463,1719982266164,-646.38295816,0.00020056,2]
[330976464,1719982266173,-175.43885404,0.00020056,2]
[330976465,1719982266182,-166.66666666,0.00020072,2]
[330976466,1719982266193,-153.3152539,0.0002009,2]
[330976467,1719982266202,-150.0,0.00020101,4]
[330976468,1719982266211,-154.87527334,0.00020131,2]
[330976469,1719982266221,-152.68336597,0.00020138,2]
[330976470,1719982266232,-152.83410141,0.00020177,2]
[330976471,1719982266243,-150.0,0.00020181,4]
[330976472,1719982266254,-517.98841663,0.00020182,2]
[330976473,1719982266265,-155.17151179,0.00020188,2]
[330976474,1719982266274,-171.805303,0.00020199,2]
[330976475,1719982266283,-171.805303,0.00020199,2]
[330976476,1719982266292,-151.0,0.00020199,2]
[330976477,1719982266304,-2549.632847,0.00020199,2]
[330976478,1719982266313,-2549.632847,0.00020199,2]
[330976479,1719982266325,-1282.76489039,0.000202,2]
[330976480,1719982266336,-231.28867886,0.00020244,2]
[330976481,1719982266347,-150.0,0.0002026,4]
[330976482,1719982266356,-646.38295816,0.00020268,2]
[330976483,1719982266366,-1000.0,0.00020272,2]
[330976484,1719982266377,-155.17151179,0.00020277,2]
[330976485,1719982266388,-384.98145214,0.00020279,2]
[330976486,1719982266398,-175.43885404,0.00020294,2]
[330976487,1719982266408,-204.0,0.0002031,2]
[330976488,1719982266418,-153.3152539,0.0002033,2]
[330976489,1719982266429,-161.20256662,0.00020337,2]
[330976490,1719982266439,-150.0,0.0002034,4]
[330976491,1719982266449,-315.93186495,0.0002034,2]
[330976492,1719982266458,-646.38295816,0.00020365,2]
[330976493,1719982266467,-154.82210955,0.00020373,2]
[330976494,1719982266475,-632.14232024,0.00020375,2]
[330976495,1719982266485,-384.98145214,0.00020381,2]
[330976496,1719982266494,-175.43885404,0.00020407,2]
[330976497,1719982266503,-150.0,0.00020419,4]
[330976498,1719982266512,-646.38295816,0.00020422,2]
[330976499,1719982266521,-6504.07410586,0.00020443,2]
[330976500,1719982266530,-154.82210955,0.00020444,2]
[330976501,1719982266540,-154.27660404,0.00020476,2]
[330976502,1719982266549,-152.0,0.00020484,3]
[330976503,1719982266558,-153.3152539,0.00020488,2]
[330976504,1719982266566,-150.0,0.00020499,4]
[330976505,1719982266576,-1000.0,0.00020547,3]
[330976506,1719982266585,-1000.0,0.00020547,3]
[330976507,1719982266596,-1000.0,0.00020547,3]
[330976508,1719982266606,-1000.0,0.00020547,3]
[330976509,1719982266617,-150.0,0.00020578,4]
[330976510,1719982266628,-384.98145214,0.00020608,2]
[330976511,1719982266637,-384.98145214,0.0002061,2]
[330976512,1719982266647,-151.04690993,0.00020614,2]
[330976513,1719982266656,-204.0,0.0002065,2]
[330976514,1719982266665,-298.45180818,0.00020658,4]
[330976515,1719982266675,-153.96641334,0.00020658,4]
[330976516,1719982266684,-153.90874848,0.00020673,2]
[330976517,1719982266695,-542778.99867641,0.0002068,7]
[330976518,1719982266705,-155458.90090061,0.0002068,2]
[330976519,1719982266714,-308528.84481557,0.0002068,2]
[330976520,1719982266724,-151.0,0.0002068,2]
[330976521,1719982266733,-151.0,0.0002068,2]
[330976522,1719982266744,-151.0,0.0002068,2]
[330976523,1719982266754,-171.805303,0.0002068,2]
[330976524,1719982266765,-171.805303,0.0002068,2]
[330976525,1719982266775,-171.805303,0.0002068,2]
[330976526,1719982266786,-171.805303,0.0002068,2]
[330976527,1719982266795,-151.0,0.0002068,2]
[330976528,1719982266805,-2549.632847,0.0002068,2]
[330976529,1719982266814,-2549.632847,0.0002068,2]
[330976530,1719982266823,-2549.632847,0.0002068,2]
[330976531,1719982266833,-2549.632847,0.0002068,2]
[330976532,1719982266842,-177.54937339,0.00020691,4]
[330976533,1719982266852,-155.17151179,0.00020693,2]
[330976534,1719982266861,-1766.077,0.000207,2]
[330976535,1719982266871,-1000.0,0.000207,2]
[330976536,1719982266880,-151.04690993,0.0002072,2]
[330976537,1719982266890,-646.38295816,0.00020752,2]
[330976538,1719982266900,-632.14232024,0.00020763,2]
[330976539,1719982266910,-632.14232024,0.00020764,2]
[330976540,1719982266919,-114782.0,0.00020795,2]
[330976541,1719982266928,-151.0,0.00020795,2]
[330976542,1719982266937,-171.805303,0.00020795,2]
[330976543,1719982266946,-171.8053,0.00020795,2]
[330976544,1719982266955,-2549.632847,0.00020795,2]
[330976545,1719982266965,-2549.632847,0.00020795,2]
[330976546,1719982266974,-151.0,0.000208,2]
[330976547,1719982266983,-300365.251215,0.000208,2]
[330976548,1719982266994,-2549.632847,0.000208,2]
[330976549,1719982267005,-2549.632847,0.000208,2]
[330976550,1719982267015,-1000.0,0.00020821,4]
[330976551,1719982267025,-1000.0,0.00020821,4]
[330976552,1719982267034,-1000.0,0.00020821,4]
[330976553,1719982267049,-1000.0,0.00020821,4]
[330976554,1719982267059,-153.3152539,0.00020824,2]
[330976555,1719982267071,-384.98145214,0.00020828,2]
[330976556,1719982267081,-151.04690993,0.00020838,2]
[330976557,1719982267093,-175.43885404,0.00020839,2]
[330976558,1719982267104,-315.93186495,0.00020856,2]
[330976559,1719982267113,-1665.23388199,0.000209,2]
[330976560,1719982267123,-152.83410141,0.00020915,2]
[330976561,1719982267135,-152.83410141,0.00020916,2]
[330976562,1719982267146,-154.27660404,0.0002092,2]
[330976563,1719982267155,-632.14232024,0.00020962,2]
[330976564,1719982267166,-179.55277806,0.00020965,2]
[330976565,1719982267178,-152.68336597,0.00020965,2]
[330976566,1719982267189,-204.0,0.0002098,2]
[330976567,1719982267201,-153.90874848,0.00020984,2]
[330976568,1719982267210,-151.04690993,0.00020991,2]
[330976569,1719982267221,-231.28867886,0.00020992,2]
[330976570,1719982267232,-231.28867886,0.00020995,2]
[330976571,1719982267242,-155.38465714,0.00020999,2]
[330976572,1719982267253,-206.97019402,0.00021,2]
[330976573,1719982267264,-493063.9377398,0.00021,3]
[330976574,1719982267273,-1250.0,0.00021,2]
[330976575,1719982267282,-151.0,0.00021,2]
[330976576,1719982267291,-203.233329,0.00021,2]
[330976577,1719982267302,-2549.632847,0.00021,2]
[330976578,1719982267312,-384.98145214,0.00021002,2]
[330976579,1719982267323,-315.93186495,0.00021007,2]
[330976580,1719982267337,-151.04690993,0.00021026,2]
[330976581,1719982267348,-150.0956725,0.00021029,2]
[330976582,1719982267358,-716.63369653,0.0002104,2]
[330976583,1719982267368,-646.38295816,0.00021062,2]
[330976584,1719982267379,-646.38295816,0.0002107,2]
[330976585,1719982267388,-179.55277806,0.00021071,2]
[330976586,1719982267399,-152.68336597,0.00021071,2]
[330976587,1719982267409,-161.20256662,0.0002109,2]
[330976588,1719982267421,-1000.0,0.00021095,5]
[330976589,1719982267431,-1000.0,0.00021095,5]
[330976590,1719982267442,-1000.0,0.00021095,5]
[330976591,1719982267453,-1000.0,0.00021095,5]
[330976592,1719982267463,-150.0,0.00021096,2]
[330976593,1719982267473,-1282.76489039,0.000211,2]
[330976594,1719982267485,-16899.84944409,0.000211,2]
[330976595,1719982267495,-231.28867886,0.00021102,2]
[330976596,1719982267505,-153.90874848,0.00021128,2]
[330976597,1719982267516,-151.04690993,0.00021131,2]
[330976598,1719982267528,-150.0,0.00021149,2]
[330976599,1719982267540,-153.90874848,0.00021157,2]
[330976600,1719982267550,-166.66666666,0.00021159,2]
[330976601,1719982267559,-155.17151179,0.00021159,2]
[330976602,1719982267570,-150.0,0.00021181,2]
[330976603,1719982267580,-300.0,0.00021188,2]
[330976604,1719982267592,-152.83410141,0.00021204,2]
[330976605,1719982267602,-1176.70625993,0.00021222,4]
[330976606,1719982267613,-646.38295816,0.00021227,2]
[330976607,1719982267624,-384.98145214,0.00021227,2]
[330976608,1719982267633,-150.0,0.0002124,2]
[330976609,1719982267643,-6504.07410586,0.00021258,2]
[330976610,1719982267652,-154.41149919,0.00021267,2]
[330976611,1719982267662,-150.0,0.00021271,2]
[330976612,1719982267671,-152.26339483,0.00021288,2]
[330976613,1719982267680,-150.0,0.00021306,2]
[330976614,1719982267691,-153.90874848,0.00021308,2]
[330976615,1719982267700,-155.8604434,0.00021314,2]
[330976616,1719982267711,-204.0,0.0002132,2]
[330976617,1719982267720,-150.0,0.00021325,2]
[330976618,1719982267730,-150.0,0.0002134,2]
[330976619,1719982267739,-150.0,0.00021357,2]
[330976620,1719982267749,-150.0,0.00021361,2]
[330976621,1719982267758,-1000.0,0.00021369,6]
[330976622,1719982267768,-1000.0,0.00021369,6]
[330976623,1719982267778,-1000.0,0.00021369,6]
[330976624,1719982267787,-1000.0,0.00021369,6]
[330976625,1719982267798,-150.0,0.00021378,2]
[330976626,1719982267807,-150.0,0.00021378,2]
[330976627,1719982267817,-315.93186495,0.00021389,2]
[330976628,1719982267827,-150.0,0.00021391,2]
[330976629,1719982267836,-150.0,0.00021396,2]
[330976630,1719982267846,-150.0,0.00021398,2]
[330976631,1719982267856,-152.26339483,0.00021402,2]
[330976632,1719982267866,-155.17151179,0.00021406,2]
[330976633,1719982267875,-150.0,0.0002143,2]
[330976634,1719982267884,-150.0,0.00021435,2]
[330976635,1719982267894,-646.38295816,0.00021453,2]
[330976636,1719982267903,-152.68336597,0.00021453,2]
[330976637,1719982267912,-13550.0,0.00021463,7]
[330976638,1719982267922,-150.0,0.00021464,2]
[330976639,1719982267931,-152.0,0.00021471,4]
[330976640,1719982267942,-175.43885404,0.00021473,2]
[330976641,1719982267951,-1068.79505037,0.00021479,2]
[330976642,1719982267961,-632.14232024,0.00021485,2]
[330976643,1719982267970,-152.68336597,0.00021489,2]
[330976644,1719982267980,-150.0,0.00021494,2]
[330976645,1719982267989,-4122.2228214,0.000215,2]
[330976646,1719982267999,-152.83410141,0.00021507,2]
[330976647,1719982268008,-150.0,0.00021517,2]
[330976648,1719982268018,-1500.0,0.00021518,2]
[330976649,1719982268028,-150.0,0.0002152,2]
[330976650,1719982268038,-150.0,0.00021528,2]
[330976651,1719982268048,-150.0,0.0002153,2]
[330976652,1719982268063,-153.3152539,0.00021541,2]
[330976653,1719982268073,-231.28867886,0.00021554,2]
[330976654,1719982268082,-150.0,0.00021563,2]
[330976655,1719982268094,-150.0,0.00021568,2]
[330976656,1719982268104,-153.90874848,0.00021574,2]
[330976657,1719982268113,-150.0,0.00021578,2]
[330976658,1719982268123,-154.82210955,0.00021578,2]
[330976659,1719982268133,-150.0,0.0002159,2]
[330976660,1719982268143,-150.0,0.00021597,2]
[330976661,1719982268152,-150.0,0.00021599,2]
[330976662,1719982268162,-151.69453534,0.00021607,2]
[330976663,1719982268171,-153.90874848,0.00021612,2]
[330976664,1719982268181,-315.93186495,0.00021614,2]
[330976665,1719982268191,-150.0,0.00021626,2]
[330976666,1719982268200,-395.0,0.0002163,3]
[330976667,1719982268210,-150.0,0.0002163,2]
[330976668,1719982268219,-384.98145214,0.0002163,2]
[330976669,1719982268229,-150.0,0.00021632,2]
[330976670,1719982268239,-150.0,0.00021632,2]
[330976671,1719982268248,-150.0,0.00021637,2]
[330976672,1719982268258,-1000.0,0.00021639,3]
[330976673,1719982268268,-1000.0,0.00021643,7]
[330976674,1719982268277,-1000.0,0.00021643,7]
[330976675,1719982268287,-1000.0,0.00021643,7]
[330976676,1719982268297,-327.27195084,0.00021643,2]
[330976677,1719982268306,-363.79,0.00021644,2]
[330976678,1719982268316,-268.73,0.00021644,2]
[330976679,1719982268328,-156.12,0.00021644,2]
[330976680,1719982268338,-204.0,0.0002165,2]
[330976681,1719982268347,-150.0,0.00021664,2]
[330976682,1719982268357,-150.0,0.00021676,2]
[330976683,1719982268367,-300.0,0.00021689,2]
[330976684,1719982268376,-152.83410141,0.00021698,2]
[330976685,1719982268386,-231.28867886,0.00021703,2]
[330976686,1719982268395,-154.82210955,0.00021706,2]
[330976687,1719982268405,-150.0,0.0002171,2]
[330976688,1719982268414,-150.0,0.00021723,2]
[330976689,1719982268423,-315.93186495,0.00021735,2]
[330976690,1719982268437,-150.0,0.00021738,2]
[330976691,1719982268447,-500.0,0.00021741,2]
[330976692,1719982268456,-1000.0,0.00021742,2]
[330976693,1719982268466,-500.0,0.00021742,2]
[330976694,1719982268475,-500.0,0.00021742,2]
[330976695,1719982268485,-200.0,0.00021742,2]
[330976696,1719982268494,-150.0,0.00021748,2]
[330976697,1719982268503,-6279.51081998,0.00021756,2]
[330976698,1719982268513,-150.0,0.00021757,2]
[330976699,1719982268522,-150.0,0.00021762,2]
[330976700,1719982268532,-150.0,0.00021765,2]
[330976701,1719982268542,-150.0,0.00021767,2]
[330976702,1719982268552,-150.0,0.00021768,2]
[330976703,1719982268561,-632.14232024,0.00021773,2]
[330976704,1719982268571,-150.0,0.00021779,2]
[330976705,1719982268580,-300.0,0.00021781,2]
[330976706,1719982268590,-150.0,0.00021789,2]
[330976707,1719982268602,-155.72212214,0.00021794,3]
[330976708,1719982268613,-3172.88245229,0.00021804,2]
[330976709,1719982268624,-3172.88245229,0.00021804,2]
[330976710,1719982268634,-150.0,0.00021808,2]
[330976711,1719982268644,-231.28867886,0.00021816,2]
[330976712,1719982268653,-151.04690993,0.00021816,2]
[330976713,1719982268663,-150.0,0.00021824,2]
[330976714,1719982268672,-1636.88503396,0.00021828,2]
[330976715,1719982268683,-150.0,0.00021828,2]
[330976716,1719982268693,-150.0,0.00021831,2]
[330976717,1719982268703,-150.0,0.00021831,2]
[330976718,1719982268713,-153.3152539,0.00021831,2]
[330976719,1719982268723,-150.0,0.00021843,2]
[330976720,1719982268732,-384.98145214,0.00021843,2]
[330976721,1719982268742,-1200.0,0.0002185,2]
[330976722,1719982268751,-150.0,0.0002185,2]
[330976723,1719982268763,-151.0,0.00021851,2]
[330976724,1719982268772,-150.0,0.00021855,2]
[330976725,1719982268783,-150.0,0.00021865,2]
[330976726,1719982268993,-315.93186495,0.00021865,2]
[330976727,1719982269004,-150.0,0.00021868,2]
[330976728,1719982269014,-353.0,0.00021871,2]
[330976729,1719982269023,-175.43885404,0.00021874,2]
[330976730,1719982269032,-315.93186495,0.00021878,2]
[330976731,1719982269042,-150.0,0.00021884,2]
[330976732,1719982269053,-365.78699378,0.00021885,2]
[330976733,1719982269065,-632.14232024,0.00021893,2]
[330976734,1719982269074,-150.0,0.00021898,2]
[330976735,1719982269084,-491.0,0.000219,4]
[330976736,1719982269094,-20505.87268224,0.000219,2]
[330976737,1719982269103,-257.0,0.000219,2]
[330976738,1719982269113,-191.0,0.000219,4]
[330976739,1719982269122,-502.2693,0.000219,2]
[330976740,1719982269132,-286.21202756,0.000219,2]
[330976741,1719982269142,-2549.632847,0.000219,2]
[330976742,1719982269152,-153.03527398,0.00021905,2]
[330976743,1719982269162,-503.5621247,0.00021907,2]
[330976744,1719982269171,-14980.8066026,0.00021907,2]
[330976745,1719982269180,-1870.128178,0.00021907,2]
[330976746,1719982269190,-1000.0,0.00021913,4]
[330976747,1719982269199,-150.0,0.00021914,2]
[330976748,1719982269209,-157.070313,0.00021916,2]
[330976749,1719982269218,-157.070313,0.00021916,2]
[330976750,1719982269228,-157.070313,0.00021916,2]
[330976751,1719982269238,-157.070313,0.00021916,2]
[330976752,1719982269248,-157.070313,0.00021916,2]
[330976753,1719982269257,-157.070313,0.00021916,2]
[330976754,1719982269268,-157.070313,0.00021916,2]
[330976755,1719982269277,-157.070313,0.00021916,2]
[330976756,1719982269286,-157.070313,0.00021916,2]
[330976757,1719982269297,-157.070313,0.00021916,2]
[330976758,1719982269307,-157.070313,0.00021916,2]
[330976759,1719982269317,-157.070313,0.00021916,2]
[330976760,1719982269327,-160.070313,0.00021916,2]
[330976761,1719982269337,-2000.0,0.00021916,2]
[330976762,1719982269347,-1000.0,0.00021917,8]
[330976763,1719982269356,-411.81206423,0.00021917,2]
[330976764,1719982269366,-1000.0,0.00021917,8]
[330976765,1719982269376,-544.22,0.00021917,4]
[330976766,1719982269385,-544.22,0.00021917,4]
[330976767,1719982269395,-544.22,0.00021917,4]
[330976768,1719982269406,-544.22,0.00021917,4]
[330976769,1719982269416,-544.22,0.00021917,4]
[330976770,1719982269426,-544.22,0.00021917,4]
[330976771,1719982269435,-544.22,0.00021917,4]
[330976772,1719982269446,-544.22,0.00021917,4]
[330976773,1719982269456,-544.22,0.00021917,4]
[330976774,1719982269466,-544.22,0.00021917,4]
[330976775,1719982269475,-544.22,0.00021917,4]
[330976776,1719982269485,-544.22,0.00021917,4]
[330976777,1719982269495,-544.22,0.00021917,4]
[330976778,1719982269505,-544.22,0.00021917,4]
[330976779,1719982269515,-544.22,0.00021917,4]
[330976780,1719982269524,-544.22,0.00021917,4]
[330976781,1719982269533,-544.22,0.00021917,4]
[330976782,1719982269543,-544.22,0.00021917,4]
[330976783,1719982269553,-544.22,0.00021917,4]
[330976784,1719982269563,-544.22,0.00021917,4]
[330976785,1719982269572,-544.22,0.00021917,4]
[330976786,1719982269582,-544.22,0.00021917,4]
[330976787,1719982269591,-544.22,0.00021917,4]
[330976788,1719982269601,-544.23283849,0.00021917,4]
[330976789,1719982269611,-1877.73,0.00021917,4]
[330976790,1719982269621,-1877.73,0.00021917,4]
[330976791,1719982269630,-1877.73,0.00021917,4]
[330976792,1719982269639,-1877.73,0.00021917,4]
[330976793,1719982269649,-1877.73,0.00021917,4]
[330976794,1719982269658,-1877.73,0.00021917,4]
[330976795,1719982269668,-1877.73,0.00021917,4]
[330976796,1719982269677,-1877.73,0.00021917,4]
[330976797,1719982269687,-1877.73,0.00021917,4]
[330976798,1719982269697,-1877.73,0.00021917,4]
[330976799,1719982269708,-1877.73,0.00021917,4]
[330976800,1719982269718,-1877.73,0.00021917,4]
[330976801,1719982269727,-1877.73,0.00021917,4]
[330976802,1719982269737,-1877.73,0.00021917,4]
[330976803,1719982269747,-1877.73,0.00021917,4]
[330976804,1719982269756,-1877.73,0.00021917,4]
[330976805,1719982269769,-1877.73,0.00021917,4]
[330976806,1719982269778,-1877.73,0.00021917,4]
[330976807,1719982269789,-1877.73,0.00021917,4]
[330976808,1719982269798,-1877.73,0.00021917,4]
[330976809,1719982269808,-1877.73,0.00021917,4]
[330976810,1719982269819,-1877.73,0.00021917,4]
[330976811,1719982269829,-1877.73,0.00021917,4]
[330976812,1719982269838,-1877.87412054,0.00021917,4]
[330976813,1719982269847,-1921.52,0.00021917,4]
[330976814,1719982269857,-1921.52,0.00021917,4]
[330976815,1719982269866,-1921.52,0.00021917,4]
[330976816,1719982269876,-1921.52,0.00021917,4]
[330976817,1719982269892,-1000.0,0.00021917,8]
[330976818,1719982269906,-1921.52,0.00021917,4]
[330976819,1719982269916,-1921.52,0.00021917,4]
[330976820,1719982269927,-1921.52,0.00021917,4]